{"text_format":"1","workbook":"xlsx","n_sheets":2,"sheets":["Feuil1","Référentiel"],"not_rendered":{"charts":0,"images":6,"macros":1,"external_links":0,"defined_names":108,"comments":0,"pivot_tables":0},"unopened":[],"bounds":{"document_bytes":16777216,"sheet_cells":100000,"rows_first":2000,"rows_last":500,"rows_between":2000,"halvings":0,"cell_chars":16384,"cell_head_chars":4096},"cells_cut":0,"cells_raw":0,"read":"whole","date_system":"1900"}

{"sheet":"Feuil1","index":0,"n_rows":38,"n_cols":24,"rows_kept":38,"cut":false,"hidden":false,"merged":[[3,7,3,8]]}
[null,null,"Fiche évaluation DNB",null,null,null,"APSA:",null,"Baseball"]
[null,"Classe/Groupe",null,null,null,null,"Professeur:",null,null,null,null,null,null,null,null,null,null,null,null,null,null,null,"C:\\Users\\GERARD HOLDER EPS\\Documents\\fiches compatibles pack EPS\\Nouveau dossier\\macros2","C:\\Users\\GERARD HOLDER EPS\\Documents\\fiches compatibles pack EPS\\Nouveau dossier\\macros2"]
[null,null,null,null,null,null,null,null,null,null,null,null,null,null,null,null,null,null,null,null,null,null,"C:\\Users\\GERARD HOLDER EPS\\Documents\\fiches compatibles pack EPS\\Nouveau dossier\\macros2\\Fiche évaluation DNB Baseball  .pdf","C:\\Users\\GERARD HOLDER EPS\\Documents\\fiches compatibles pack EPS\\Nouveau dossier\\macros2\\Fiche évaluation DNB Ultimate  .pdf"]
[null,null,null,null,null,null,null,"Efficacité individuelle dans l’organisation collective/10 pts"]
[null,"Nom- Prénom","Sexe","Classe","Note","Efficacité collective dans le gain du match /4 pts","Gain des matchs /2 pts","Actions en défense /5 pts","Actions en attaque /5 pts","Efficacité dans le rôle d'observateur et d'arbitre/4 pts",null,null,"Pas ou peu d'organisation",null,null,0,null,0]
[1,null,null,null,{"$f":"IF(F6=\"\",\"\",F6+G6+H6+I6+J6)","v":""},null,null,null,null,null,null,null,0,null,null,0.5,null,0.5,null,null,null,0]
[2,null,null,null,{"$f":"IF(F7=\"\",\"\",F7+G7+H7+I7+J7)","v":""},null,null,null,null,null,null,null,0.5,null,null,1,null,1,null,null,null,0.5]
[3,null,null,null,"",null,null,null,null,null,null,null,1,null,null,1.5,null,1.5,null,null,null,1]
[4,null,null,null,"",null,null,null,null,null,null,null,1.5,null,null,2,null,2,null,null,null,1.5]
[5,null,null,null,"",null,null,null,null,null,null,null,"L'équipe est organisée",null,null,null,null,2.5,null,null,null,2]
[6,null,null,null,"",null,null,null,null,null,null,null,2,null,null,null,null,3,null,null,null,2.5]
[7,null,null,null,"",null,null,null,null,null,null,null,2.5,null,null,null,null,3.5,null,null,null,3]
[8,null,null,null,"",null,null,null,null,null,null,null,3,null,null,null,null,4,null,null,null,3.5]
[9,null,null,null,"",null,null,null,null,null,null,null,"l'équipe est organisés et les rôles différenciés",null,null,null,null,4.5,null,null,null,4]
[10,null,null,null,"",null,null,null,null,null,null,null,3.5,null,null,null,null,5]
[11,null,null,null,"",null,null,null,null,null,null,null,4]
[12,null,null,null,""]
[13,null,null,null,""]
[14,null,null,null,""]
[15,null,null,null,""]
[16,null,null,null,""]
[17,null,null,null,""]
[18,null,null,null,""]
[19,null,null,null,""]
[20,null,null,null,""]
[21,null,null,null,""]
[22,null,null,null,""]
[23,null,null,null,""]
[24,null,null,null,""]
[25,null,null,null,""]
[26,null,null,null,""]
[27,null,null,null,""]
[28,null,null,null,""]
[29,null,null,null,""]
[30,null,null,null,""]
[null,null,null,"Moyenne générale",{"$f":"IF(E6=\"\",\"\",AVERAGE($E$6:$E$35))","v":""}]
[null,null,null,"Moyenne filles",{"$f":"IF(E6=\"\",\"\",IF(C6=\"\",\"\",AVERAGEIF($C$6:$C$35,\"F\",$E$6:$E$35)))","v":""}]
[null,null,null,"Moyenne garçons",{"$f":"IF(E7=\"\",\"\",IF(C6=\"\",\"\",AVERAGEIF($C$6:$C$35,\"M\",$E$6:$E$35)))","v":""}]

{"sheet":"Référentiel","index":1,"n_rows":0,"n_cols":0,"rows_kept":0,"cut":false,"hidden":false,"merged":[]}